bitfinex/quotes_SOLUSD_20240821
["timestamp","ask_amount","ask_price","bid_price","bid_amount"]
[1724253327320,45.0,140.55,140.47,7.1184]
[1724253327487,21.53141415,140.54,140.47,7.1184]
[1724253327919,7.1168,140.52,140.47,7.1184]
[1724253328122,21.53141415,140.54,140.49,7.1178]
[1724253328412,20.0,140.54,140.49,7.1178]
[1724253328592,17.7856,140.57,140.49,7.1178]
[1724253328593,21.53141415,140.56,140.49,7.1178]
[1724253328818,7.1158,140.54,140.49,7.1178]
[1724253328992,20.0,140.53,140.49,7.1178]
[1724253329404,28.64731415,140.53,140.48,24.9142]
[1724253329789,7.1164,140.52,140.47,7.1188]
[1724253329986,1.53141415,140.51,140.47,7.1188]
[1724253330194,7.1175,140.5,140.45,24.9192]
[1724253330492,1.53141415,140.49,140.45,24.9192]
[1724253331125,8.64891415,140.5,140.45,17.7996]
[1724253331733,8.64891415,140.5,140.39,45.680333]
[1724253331734,65.0,140.49,140.39,21.9302]
[1724253332023,65.0,140.49,140.4,7.1224]
[1724253332024,7.1199,140.45,140.4,7.1224]
[1724253332393,20.0,140.49,140.39,39.7373]
[1724253332607,20.0,140.49,140.45,7.1198]
[1724253333004,20.0,140.5,140.45,7.1198]
[1724253333489,20.0,140.5,140.45,17.799]
[1724253333709,7.1164,140.52,140.47,7.1189]
[1724253333924,7.1158,140.54,140.49,7.1175]
[1724253334300,15.0972,140.55,140.5,17.7931]
[1724253334922,6.0673,140.58,140.5,17.7931]
[1724253335108,7.1153,140.55,140.5,24.9104]
[1724253335793,13.1807,140.58,140.53,7.1158]
[1724253336021,23.9291259,140.59,140.54,7.1153]
[1724253336203,7.9338259,140.59,140.54,7.1153]
[1724253336909,8.64471415,140.58,140.54,7.1153]
[1724253337122,8.64471415,140.58,140.53,7.1158]
[1724253337326,20.0,140.57,140.53,7.1158]
[1724253337696,21.53141415,140.57,140.53,7.1158]
[1724253337892,21.53141415,140.57,140.52,17.7904]
[1724253337893,1.53141415,140.56,140.52,17.7904]
[1724253338103,0.8209259,140.59,140.52,17.7904]
[1724253338404,7.1135,140.58,140.53,7.1158]
[1724253338812,0.8209259,140.59,140.57,7.1138]
[1724253339399,0.8209259,140.59,140.58,7.1133]
[1724253340434,0.8209259,140.59,140.58,8.53556786]
[1724253340816,0.8209259,140.59,140.58,7.1133]
[1724253343436,0.8209259,140.59,140.57,24.8982]
[1724253343614,0.8209259,140.59,140.57,17.7845]
[1724253343832,0.8209259,140.59,140.56,7.1142]
[1724253344121,0.8209259,140.59,140.57,7.1138]
[1724253344336,2.35234005,140.59,140.57,7.1138]
[1724253344545,0.8209259,140.59,140.56,7.1143]
[1724253345120,0.8209259,140.59,140.57,7.1138]
[1724253345345,0.8209259,140.59,140.58,7.1133]
[1724253345825,0.8209259,140.59,140.57,7.1138]
[1724253346538,0.8209259,140.59,140.55,17.7866]
[1724253347118,0.8209259,140.59,140.55,24.9013]
[1724253347324,0.8209259,140.59,140.56,7.1143]
[1724253347569,2.35234005,140.59,140.56,7.1143]
[1724253347921,0.8209259,140.59,140.57,7.1137]
[1724253348123,2.35234005,140.59,140.56,7.1142]
[1724253348555,1.53141415,140.58,140.55,17.7866]
[1724253348723,1.53141415,140.58,140.54,7.1149]
[1724253348724,1.53141415,140.57,140.53,7.1157]
[1724253349056,45.0,140.57,140.53,7.1157]
[1724253349343,1.53141415,140.56,140.53,7.1157]
[1724253349521,1.53141415,140.56,140.52,17.7905]
[1724253349522,1.53141415,140.56,140.52,24.9068]
[1724253349721,1.53141415,140.56,140.5,7.1172]
[1724253349722,7.1153,140.55,140.5,7.1172]
[1724253349924,1.53141415,140.54,140.5,7.1172]
[1724253350540,1.53141415,140.54,140.51,7.1167]
[1724253350939,20.0,140.56,140.52,7.116]
[1724253351137,21.53141415,140.56,140.5,35.587]
[1724253351318,1.53141415,140.55,140.53,24.9048]
[1724253351530,20.0,140.56,140.53,24.9048]
[1724253351846,20.8209259,140.59,140.53,24.9048]
[1724253351847,7.9338259,140.59,140.55,7.1148]
[1724253352052,1.53141415,140.58,140.54,7.1152]
[1724253352247,0.8209259,140.59,140.55,7.1148]
[1724253352551,2.35234005,140.59,140.56,17.7859]
[1724253352726,2.35234005,140.59,140.56,24.9001]
[1724253352926,2.35234005,140.59,140.56,17.7859]
[1724253353355,0.8209259,140.59,140.53,17.789]
[1724253353529,7.1143,140.57,140.53,17.789]
[1724253353728,1.53141415,140.56,140.53,17.789]
[1724253354627,7.1143,140.57,140.53,17.789]
[1724253354960,7.1143,140.57,140.53,24.9046]
[1724253355145,7.1134,140.58,140.54,7.1153]
[1724253355337,20.0,140.57,140.55,7.1148]
[1724253355543,20.0,140.57,140.53,17.789]
[1724253355544,1.53141415,140.56,140.54,7.1152]
[1724253355742,1.53141415,140.56,140.53,24.9047]
[1724253356559,20.0,140.57,140.53,24.9047]
[1724253356854,20.0,140.57,140.54,7.1153]
[1724253357055,20.0,140.57,140.44,20.0]
[1724253357056,62.89561415,140.56,140.43,43.04518074]
[1724253357228,62.89561415,140.56,140.49,7.1178]
[1724253357229,7.1155,140.54,140.49,7.1178]
[1724253357429,20.0,140.53,140.49,7.1178]
[1724253357631,61.3642,140.56,140.49,7.1178]
[1724253357632,61.3642,140.56,140.51,7.1168]
[1724253357851,16.3642,140.56,140.45,42.63]
[1724253358051,7.1135,140.58,140.53,7.1155]
[1724253358355,8.64531415,140.57,140.53,7.1159]
[1724253358653,7.1139,140.57,140.53,7.1159]
[1724253359057,7.1134,140.58,140.54,7.1153]
[1724253359263,20.0,140.57,140.54,7.1153]
[1724253360254,28.64531415,140.57,140.53,24.905]
[1724253360450,28.64531415,140.57,140.5,15.6739]
[1724253360451,45.0,140.56,140.5,24.9103]
[1724253360746,21.53141415,140.55,140.5,24.9103]
[1724253360969,1.53141415,140.54,140.5,24.9103]
[1724253361273,0.8209259,140.59,140.5,17.793]
[1724253361431,7.9341259,140.59,140.52,17.7903]
[1724253361678,20.0,140.58,140.54,17.7877]
[1724253361841,2.35234005,140.59,140.54,17.7877]
[1724253362205,9.46524005,140.59,140.54,24.9029]
[1724253362533,2.35234005,140.59,140.54,17.7877]
[1724253362749,0.8209259,140.59,140.54,17.7877]
[1724253362967,0.8209259,140.59,140.55,7.1148]
[1724253363342,20.8209259,140.59,140.55,7.1148]
[1724253363560,27.9337259,140.59,140.55,7.1148]
[1724253364553,8.64481415,140.58,140.54,24.9029]
[1724253364951,27.9338259,140.59,140.55,7.1148]
[1724253365150,29.46524005,140.59,140.55,7.1148]
[1724253365342,22.35234005,140.59,140.56,7.1142]
[1724253365554,22.35234005,140.59,140.56,17.785]
[1724253365555,20.8209259,140.59,140.56,17.785]
[1724253365856,0.8209259,140.59,140.57,7.1136]
[1724253366832,0.8209259,140.59,140.58,7.1133]
[1724253368942,0.8209259,140.59,140.58,8.53551641]
[1724253369258,0.8209259,140.59,140.58,7.1133]
[1724253369968,0.8209259,140.59,140.58,24.02082042]
[1724253370266,0.8209259,140.59,140.58,48.7126]
[1724253371075,0.8209259,140.59,140.58,95.26019154]
[1724253371434,0.8209259,140.59,140.58,95.38568154]
[1724253373447,0.8209259,140.59,140.58,93.83809]
[1724253373652,0.8209259,140.59,140.58,93.7126]
[1724253373875,0.8209259,140.59,140.58,48.7126]
[1724253374079,0.8209259,140.59,140.58,7.1133]
[1724253374670,0.8209259,140.59,140.56,17.785]
[1724253374976,0.8209259,140.59,140.57,7.1135]
[1724253375349,0.8209259,140.59,140.58,7.1133]
[1724253376282,0.8209259,140.59,140.56,24.8993]
[1724253376780,22.4594,140.58,140.52,17.7905]
[1724253377066,7.115,140.55,140.5,7.1173]
[1724253377271,28.64681415,140.54,140.5,7.1173]
[1724253377476,20.0,140.54,140.49,17.7941]
[1724253377673,22.4594,140.58,140.53,7.1159]
[1724253377674,7.1142,140.57,140.53,7.1159]
[1724253377846,20.0,140.57,140.53,7.1159]
[1724253378442,20.0,140.57,140.54,7.1154]
[1724253378883,0.8209259,140.59,140.53,17.7889]
[1724253379075,0.8209259,140.59,140.55,7.1147]
[1724253379476,0.8209259,140.59,140.56,1.42271599]
[1724253379680,0.8209259,140.59,140.57,7.1137]
[1724253380058,0.8209259,140.59,140.56,7.1139]
[1724253380370,0.8209259,140.59,140.55,17.7866]
[1724253380371,0.8209259,140.59,140.57,7.1138]
[1724253381071,0.8209259,140.59,140.58,8.53583688]
[1724253381473,0.8209259,140.59,140.58,7.1133]
[1724253385375,0.8209259,140.59,140.58,43.99445671]
[1724253385575,0.8209259,140.59,140.58,107.80569]
[1724253385774,0.8209259,140.59,140.58,87.80569]
[1724253385967,0.8209259,140.59,140.58,107.80569]
[1724253388171,0.8209259,140.59,140.58,114.35249]
[1724253388372,0.8209259,140.59,140.58,115.77453051]
[1724253388558,0.8209259,140.59,140.58,115.90002051]
[1724253389799,0.8209259,140.59,140.58,115.89989595]
[1724253390384,7.1069,140.71,140.67,7.1087]
[1724253391267,13.3364,140.72,140.68,7.1082]
[1724253391466,15.8461,140.74,140.67,17.7716]
[1724253391669,22.9517,140.74,140.69,7.1077]
[1724253391983,22.9517,140.74,140.68,7.1082]
[1724253391984,7.9270259,140.73,140.68,7.1082]
[1724253392289,7.9268259,140.73,140.69,7.1078]
[1724253393079,0.8209259,140.73,140.7,8.52845953]
[1724253393810,0.8209259,140.73,140.69,17.7687]
[1724253394008,7.9271259,140.73,140.69,17.7687]
[1724253394171,0.8209259,140.73,140.71,7.1063]
[1724253394375,0.8209259,140.73,140.69,17.7687]
[1724253394592,0.8209259,140.73,140.66,6.5914]
[1724253394593,2.35234005,140.73,140.66,17.7731]
[1724253394810,7.1064,140.72,140.67,7.1083]
[1724253395376,7.1073,140.7,140.66,24.8823]
[1724253395681,7.1073,140.7,140.57,20.0]
[1724253395682,7.1088,140.67,140.63,17.7767]
[1724253395887,15.8943,140.71,140.6,17.7805]
[1724253395888,21.53141415,140.69,140.6,17.7805]
[1724253396107,7.1093,140.66,140.6,17.7805]
[1724253396405,21.53141415,140.69,140.6,17.7805]
[1724253396406,7.1103,140.64,140.6,17.7805]
[1724253396613,1.53141415,140.63,140.56,17.7847]
[1724253396811,1.53141415,140.62,140.52,17.7902]
[1724253397110,17.47811415,140.62,140.52,17.7902]
[1724253397311,7.1122,140.61,140.55,7.1147]
[1724253397516,1.53141415,140.6,140.55,7.1147]
[1724253397818,66.53141415,140.6,140.52,17.7902]
[1724253397981,65.0,140.6,140.52,17.7902]
[1724253398180,1.53141415,140.59,140.52,17.7902]
[1724253398602,8.07101415,140.58,140.49,7.131]
[1724253398802,7.1144,140.56,140.49,7.131]
[1724253399106,1.53141415,140.55,140.49,7.131]
[1724253399306,1.53141415,140.54,140.49,7.131]
[1724253399809,1.53141415,140.56,140.49,7.131]
[1724253400016,7.1156,140.54,140.49,7.131]
[1724253400312,73.64771415,140.53,140.46,7.1194]
[1724253400486,7.1163,140.53,140.46,7.1194]
[1724253400689,7.1163,140.53,140.47,7.1189]
[1724253400889,1.53141415,140.52,140.47,7.1189]
[1724253401299,7.1165,140.52,140.46,7.1193]
[1724253401693,66.53141415,140.51,140.44,87.354536]
[1724253401890,1.53141415,140.5,140.44,87.354536]
[1724253402085,21.53141415,140.5,140.44,87.354536]
[1724253402689,8.64941415,140.49,140.44,87.354536]
[1724253402887,1.53141415,140.48,140.44,94.474936]
[1724253403101,1.53141415,140.49,140.44,94.474936]
[1724253403307,1.53141415,140.56,140.45,7.1199]
[1724253403481,66.53141415,140.56,140.45,7.1199]
[1724253403905,66.53141415,140.56,140.44,87.354536]
[1724253403906,7.1174,140.5,140.44,94.474936]
[1724253404108,1.53141415,140.49,140.44,94.474936]
[1724253404287,7.1189,140.48,140.44,69.553736]
[1724253404600,7.1179,140.49,140.44,69.553736]
[1724253404802,7.1175,140.5,140.44,76.674136]
[1724253404985,15.1248,140.53,140.45,7.1198]
[1724253405185,7.1175,140.5,140.45,7.1198]
[1724253405383,1.53141415,140.49,140.44,69.553736]
[1724253405584,7.1189,140.47,140.44,69.553736]
[1724253405808,7.1199,140.45,140.44,69.553736]
[1724253406008,27.1199,140.45,140.44,69.553736]
[1724253406405,20.0,140.45,140.44,69.553736]
[1724253406728,6.2859,140.49,140.44,69.553736]
[1724253406729,7.1181,140.49,140.44,69.553736]
[1724253406900,15.1248,140.53,140.44,69.553736]
[1724253407220,15.1248,140.53,140.44,87.353736]
[1724253407422,7.1169,140.51,140.45,7.1198]
[1724253407791,7.1164,140.52,140.44,87.353736]
[1724253407997,1.53141415,140.51,140.44,87.353736]
[1724253408200,7.1159,140.53,140.48,7.1182]
[1724253408402,7.1153,140.55,140.49,8.54129541]
[1724253408627,7.1153,140.55,140.49,7.1178]
[1724253408796,7.1153,140.55,140.49,8.54121505]
[1724253409117,8.64691415,140.54,140.49,7.1178]
[1724253409490,7.1155,140.54,140.49,7.1178]
[1724253409695,43.30838985,140.58,140.48,17.795]
[1724253409696,7.1149,140.55,140.5,7.1173]
[1724253409901,21.3264,140.58,140.52,7.1162]
[1724253410117,7.1144,140.56,140.51,7.1168]
[1724253410299,8.64631415,140.55,140.51,7.1168]
[1724253410502,7.1164,140.52,140.47,7.1188]
[1724253410817,7.1154,140.54,140.49,7.1178]
[1724253411027,7.115,140.55,140.5,7.1174]
[1724253411231,65.0,140.54,140.47,24.9158]
[1724253411524,20.0,140.54,140.47,24.9158]
[1724253411703,46.53141415,140.53,140.47,24.9158]
[1724253411905,20.0,140.52,140.47,24.9158]
[1724253412108,1.53141415,140.51,140.47,24.9158]
[1724253412405,20.0,140.52,140.47,24.9158]
[1724253412618,1.53141415,140.51,140.47,24.9158]
[1724253412827,27.1164,140.52,140.47,24.9158]
[1724253413025,20.0,140.52,140.47,17.7969]
[1724253413211,21.3264,140.58,140.49,17.7939]
[1724253413404,65.0,140.57,140.49,17.7939]
[1724253413707,7.1165,140.52,140.47,7.1188]
[1724253413914,1.53141415,140.51,140.46,17.7985]
[1724253414106,7.1173,140.51,140.46,24.9177]
[1724253416224,72.1175,140.5,140.46,17.7985]
[1724253416624,27.1175,140.5,140.46,24.9178]
[1724253416809,20.0,140.5,140.46,24.9178]
[1724253417015,7.1165,140.52,140.46,17.7985]
[1724253417328,20.0,140.51,140.46,17.7985]
[1724253417492,1.53141415,140.5,140.46,17.7985]
[1724253418024,20.0,140.51,140.47,7.1185]
[1724253418222,20.0,140.51,140.47,7.1189]
[1724253418434,7.1168,140.52,140.47,7.1189]
[1724253418595,20.0,140.51,140.47,7.1189]
[1724253419621,20.0,140.51,140.46,17.7985]
[1724253419819,20.0,140.51,140.48,7.1184]
[1724253420199,46.53141415,140.5,140.45,7.1198]
[1724253420425,52.1175,140.5,140.45,7.1198]
[1724253420605,53.64891415,140.5,140.45,7.1198]
[1724253421115,53.64891415,140.5,140.46,7.1194]
[1724253421424,20.0,140.51,140.44,69.553736]
[1724253421637,21.89320493,140.57,140.44,69.553736]
[1724253421638,27.1165,140.52,140.48,7.1183]
[1724253421936,1.53141415,140.51,140.47,24.9154]
[1724253422294,8.64871415,140.51,140.47,17.7968]
[1724253422731,1.53141415,140.51,140.45,7.1197]
[1724253422913,7.1183,140.49,140.44,94.474036]
[1724253423115,46.53141415,140.51,140.44,87.354036]
[1724253423319,72.1178,140.5,140.45,7.1196]
[1724253423640,20.0,140.5,140.47,7.1189]
[1724253424505,1.53141415,140.49,140.46,24.9174]
[1724253424829,8.64931415,140.49,140.46,17.7982]
[1724253425628,1.53141415,140.49,140.44,69.553736]
[1724253425927,7.1195,140.46,140.44,69.553736]
[1724253427037,7.119,140.47,140.44,69.553736]
[1724253427204,21.869,140.55,140.45,1.42384245]
[1724253427413,7.1167,140.52,140.47,7.1187]
[1724253428012,7.1169,140.51,140.47,7.1187]
[1724253428520,7.1166,140.52,140.47,7.1187]
[1724253428831,21.53141415,140.51,140.44,76.673736]
[1724253429045,1.53141415,140.51,140.44,76.673736]
[1724253429331,20.0,140.52,140.44,76.673736]
[1724253429535,7.1177,140.5,140.45,7.1197]
[1724253429711,28.64931415,140.49,140.45,7.1197]
[1724253429902,27.1179,140.49,140.45,7.1197]
[1724253430107,21.869,140.55,140.46,1.42377323]
[1724253430307,7.1165,140.52,140.47,7.1185]
[1724253430505,45.0,140.54,140.46,7.1193]
[1724253430730,1.53141415,140.53,140.45,24.9187]
[1724253430935,17.7918,140.52,140.44,69.553736]
[1724253431133,45.0,140.51,140.44,69.553736]
[1724253431329,8.64921415,140.5,140.45,7.1198]
[1724253431529,7.1179,140.49,140.45,7.1198]
[1724253431836,46.53141415,140.54,140.45,7.1198]
[1724253431837,7.1175,140.5,140.45,7.1198]
[1724253432032,28.64941415,140.49,140.44,94.474736]
[1724253432545,27.118,140.49,140.45,7.1197]
[1724253432910,7.1185,140.48,140.44,94.474836]
[1724253433239,27.1179,140.49,140.45,7.1198]
[1724253433418,20.0,140.49,140.45,7.1198]
[1724253434113,21.869,140.55,140.46,19.22203049]
[1724253434334,20.0,140.54,140.48,17.7957]
[1724253434519,21.869,140.55,140.48,17.7957]
[1724253434708,7.1169,140.51,140.48,17.7957]
[1724253435128,7.1166,140.52,140.48,24.914]
[1724253435518,8.64831415,140.51,140.48,17.7957]
[1724253435729,8.64831415,140.51,140.46,13.7149]
[1724253436032,17.789,140.54,140.47,7.1187]
[1724253436246,65.0,140.53,140.47,7.1187]
[1724253436424,1.53141415,140.52,140.47,7.1187]
[1724253437042,7.117,140.51,140.47,7.1187]
[1724253437335,7.1175,140.5,140.46,6.5956]
[1724253437537,1.53141415,140.51,140.46,7.1194]
[1724253437743,65.0,140.53,140.48,7.1182]
[1724253437744,7.1167,140.52,140.48,7.1182]
[1724253437923,7.1167,140.52,140.47,19.22046462]
[1724253437924,20.0,140.51,140.47,24.9156]
[1724253438322,27.117,140.51,140.47,24.9156]
[1724253438835,20.0,140.51,140.47,24.9156]
[1724253439050,17.789,140.54,140.5,7.1174]
[1724253439051,7.1157,140.54,140.5,7.1174]
[1724253439353,13.88514551,140.58,140.51,17.792]
[1724253439354,6.4513,140.58,140.51,17.792]
[1724253439522,15.9256,140.59,140.52,1.42315015]
[1724253440037,7.1142,140.57,140.53,7.1157]
[1724253440619,8.64581415,140.56,140.51,17.792]
[1724253440819,7.1149,140.55,140.51,24.9085]
[1724253441445,1.53141415,140.54,140.49,6.6628]
[1724253441666,7.1155,140.54,140.49,13.7803]
[1724253441945,20.0,140.53,140.49,13.7803]
[1724253442316,20.0,140.53,140.49,15.2036628]
[1724253442516,20.0,140.53,140.49,13.7803]
[1724253442714,20.0,140.53,140.49,15.2036609]
[1724253442915,7.1177,140.5,140.45,24.2253]
[1724253443144,1.53141415,140.49,140.45,31.3452]
[1724253443346,20.0,140.53,140.45,31.3452]
[1724253443347,1.53141415,140.52,140.45,31.3452]
[1724253443537,7.1178,140.5,140.45,31.3452]
[1724253443727,7.1178,140.5,140.46,7.1194]
[1724253443937,45.0,140.52,140.45,17.7997]
[1724253444245,20.0,140.51,140.44,69.553736]
[1724253444440,7.1189,140.48,140.44,69.553736]
[1724253445027,20.0,140.51,140.44,87.354236]
[1724253445224,53.64921415,140.5,140.45,7.1199]
[1724253445424,20.0,140.49,140.45,7.1199]
[1724253445826,27.1181,140.49,140.45,7.1199]
[1724253446020,1.53141415,140.48,140.44,94.474536]
[1724253446215,20.0,140.49,140.44,69.553736]
[1724253446444,46.53141415,140.48,140.44,69.553736]
[1724253446752,20.0,140.47,140.44,69.553736]
[1724253446921,7.1199,140.45,140.44,69.553736]
[1724253447345,20.0,140.45,140.44,69.553736]
[1724253447528,27.1199,140.45,140.44,69.553736]
[1724253447730,72.1199,140.45,140.44,69.553736]
[1724253448446,72.1199,140.45,140.44,52.887136]
[1724253448655,72.1199,140.45,140.44,36.220536]
[1724253450325,73.65131415,140.45,140.44,36.220536]
[1724253450622,73.65131415,140.45,140.44,34.43476727]
[1724253450841,72.1199,140.45,140.44,34.43476727]
[1724253451219,27.1199,140.45,140.44,34.43476727]
[1724253451821,28.65131415,140.45,140.44,34.43476727]
[1724253452647,73.65131415,140.45,140.44,34.43476727]
[1724253453081,73.65131415,140.45,140.44,16.58804592]
[1724253453223,7.123,140.39,140.34,7.1251]
[1724253453429,20.0,140.45,140.35,17.8116]
[1724253453728,7.1219,140.42,140.37,7.1235]
[1724253453933,28.65351415,140.41,140.36,7.1244]
[1724253454238,20.0,140.4,140.35,17.8116]
[1724253454427,20.0,140.44,140.35,24.9366]
[1724253454842,1.53141415,140.43,140.36,7.1245]
[1724253455068,17.8033,140.43,140.34,7.1251]
[1724253455348,7.123,140.39,140.34,7.1251]
[1724253455537,7.1226,140.4,140.35,7.1248]
[1724253455736,20.0,140.39,140.35,7.1248]
[1724253456135,27.1231,140.39,140.34,24.9386]
[1724253456355,45.0,140.38,140.34,24.9386]
[1724253456554,1.53141415,140.37,140.34,17.8132]
[1724253456780,8.65551415,140.37,140.33,23.4115]
[1724253457058,8.65551415,140.37,140.33,16.2856]
[1724253457258,27.1245,140.36,140.33,16.2856]
[1724253457651,7.1255,140.34,140.29,22.4754]
[1724253457836,1.53141415,140.33,140.29,22.4754]
[1724253458039,20.0,140.36,140.29,15.3479]
[1724253458040,7.1275,140.3,140.29,15.3479]
[1724253458251,7.1275,140.3,140.25,0.8209259]
[1724253458252,7.1296,140.26,140.25,0.8209259]
[1724253458566,82.8198,140.3,140.25,0.8209259]
[1724253458567,7.1292,140.27,140.25,0.8209259]
[1724253458769,8.66061415,140.27,140.25,0.8209259]
[1724253459355,7.1291,140.27,140.25,0.8209259]
[1724253459568,35.6337,140.32,140.25,0.8209259]
[1724253459569,8.66101415,140.26,140.25,0.8209259]
[1724253459860,72.1296,140.26,140.25,0.8209259]
[1724253460059,20.0,140.26,140.25,0.8209259]
[1724253460855,72.1296,140.26,140.25,0.8209259]
[1724253461778,73.66101415,140.26,140.25,0.8209259]
[1724253461971,87.68722261,140.26,140.25,0.8209259]
[1724253462145,87.68722261,140.26,140.15,7.43362853]
[1724253462146,7.1319,140.22,140.15,7.43362853]
[1724253462463,66.53141415,140.21,140.16,7.1346]
[1724253462766,7.1335,140.19,140.15,7.43362853]
[1724253463069,1.53141415,140.2,140.15,25.27122853]
[1724253463070,20.0,140.18,140.15,25.27122853]
[1724253463368,1.53141415,140.2,140.15,7.43362853]
[1724253463672,1.53141415,140.2,140.13,16.133]
[1724253464164,7.1337,140.18,140.13,16.133]
[1724253464370,66.53141415,140.17,140.12,7.1366]
[1724253464549,66.53141415,140.17,140.11,18.6631259]
[1724253464550,20.0,140.17,140.14,7.1356]
[1724253464753,20.0,140.17,140.15,7.1351]
[1724253464954,21.53141415,140.21,140.16,7.1346]
[1724253465269,14.02620846,140.26,140.14,24.9741]
[1724253465270,66.53141415,140.2,140.14,24.9741]
[1724253465436,21.53141415,140.2,140.15,7.1347]
[1724253465641,45.0,140.19,140.15,7.1347]
[1724253465945,20.0,140.18,140.17,7.1341]
[1724253466366,65.0,140.18,140.16,7.1344]
[1724253466669,20.0,140.18,140.16,7.1344]
[1724253466971,21.53141415,140.25,140.16,7.1344]
[1724253467174,21.53141415,140.25,140.16,17.8355]
[1724253467343,14.56090846,140.26,140.2,7.1326]
[1724253467543,1.53141415,140.25,140.21,7.1319]
[1724253467842,6.1799,140.3,140.19,1.42646865]
[1724253468388,1.53141415,140.29,140.17,22.7548]
[1724253468747,8.65991415,140.29,140.23,7.1311]
[1724253468980,7.1287,140.28,140.23,7.1311]
[1724253469158,21.53141415,140.27,140.22,17.8279]
[1724253469351,21.53141415,140.29,140.22,17.8279]
[1724253469552,7.1291,140.27,140.22,17.8279]
[1724253469755,21.53141415,140.26,140.22,24.9595]
[1724253469980,21.53141415,140.26,140.23,7.1309]
[1724253470177,1.53141415,140.26,140.23,7.1309]
[1724253470562,7.41781976,140.32,140.25,17.8253]
[1724253470767,7.1275,140.31,140.26,7.1294]
[1724253471073,8.65891415,140.3,140.25,24.9554]
[1724253471251,1.53141415,140.29,140.25,24.9554]
[1724253472057,1.53141415,140.29,140.26,7.1295]
[1724253472365,1.53141415,140.29,140.25,24.9553]
[1724253472586,21.53141415,140.29,140.25,24.9553]
[1724253472763,21.53141415,140.29,140.26,7.1296]
[1724253473155,21.53141415,140.28,140.26,7.1296]
[1724253473387,1.53141415,140.28,140.26,7.1295]
[1724253473559,8.65791415,140.33,140.27,7.129]
[1724253473755,13.55415524,140.34,140.27,17.8221]
[1724253473756,7.41565524,140.34,140.27,17.8221]
[1724253473957,1.53141415,140.35,140.31,7.1269]
[1724253474187,7.1251,140.35,140.3,7.1274]
[1724253475080,1.53141415,140.34,140.32,24.9426]
[1724253475467,1.53141415,140.37,140.32,24.9426]
[1724253475687,8.65551415,140.37,140.33,7.126]
[1724253475853,7.41345685,140.39,140.33,7.126]
[1724253475854,8.944871,140.39,140.33,7.126]
[1724253476053,1.53141415,140.38,140.34,7.1253]
[1724253476463,8.65491415,140.38,140.34,7.1253]
[1724253476886,7.1235,140.38,140.34,7.1253]
[1724253477055,7.1235,140.38,140.33,7.1259]
[1724253477258,21.53141415,140.37,140.33,7.1259]
[1724253478479,45.0,140.36,140.33,7.1259]
[1724253479087,1.53141415,140.35,140.32,17.8161]
[1724253479306,1.53141415,140.35,140.32,24.9425]
[1724253479461,45.0,140.36,140.32,24.9425]
[1724253479667,1.53141415,140.35,140.32,24.9425]
[1724253480291,1.53141415,140.35,140.29,17.8195]
[1724253480481,21.53141415,140.35,140.29,17.8195]
[1724253480685,45.0,140.34,140.26,17.8234]
[1724253480974,20.0,140.33,140.26,17.8234]
[1724253481176,53.65831415,140.32,140.27,7.129]
[1724253481485,20.0,140.33,140.28,17.8207]
[1724253481686,20.0,140.34,140.27,35.6453]
[1724253481870,25.22084076,140.41,140.33,7.1256]
[1724253482069,25.22084076,140.41,140.32,17.8158]
[1724253482070,7.1246,140.36,140.32,17.8158]
[1724253482681,7.1235,140.38,140.33,7.1256]
[1724253483194,27.124,140.37,140.33,7.1256]
[1724253483492,7.1245,140.36,140.32,32.9057]
[1724253483694,7.1257,140.34,140.32,15.0899]
[1724253483876,7.125,140.36,140.32,15.0899]
[1724253484086,21.53141415,140.35,140.32,22.2164]
[1724253484389,21.53141415,140.35,140.25,49.1921]